fUSD/lending_fUSD_20240523
["ID","MTS","AMOUNT","RATE_DAILY","PERIOD"]
[327753359,1716432643697,-9892.35,0.00021917,2]
[327753360,1716432643706,-500.0,0.00021917,2]
[327753361,1716432643715,-500.0,0.00021917,2]
[327753362,1716432643725,-631.25,0.00021917,2]
[327753363,1716432643735,-500.0,0.00021917,2]
[327753364,1716432643744,-1819.25,0.00021917,2]
[327753365,1716432643757,-606.02451174,0.00021917,2]
[327753366,1716432643767,-500.0,0.00021917,2]
[327753367,1716432643776,-500.0,0.00021917,2]
[327753368,1716432643786,-518.6905908,0.00021917,2]
[327753369,1716432643795,-510.74,0.00021917,2]
[327753370,1716432643804,-422.66215325,0.00021917,2]
[327753371,1716432643814,-500.0,0.00021917,2]
[327753372,1716432643824,-500.0,0.00021917,2]
[327753373,1716432643833,-500.0,0.00021917,2]
[327753374,1716432643843,-500.0,0.00021917,2]
[327753375,1716432643852,-500.0,0.00021917,2]
[327753376,1716432643862,-500.0,0.00021917,2]
[327753377,1716432643871,-500.0,0.00021917,2]
[327753378,1716432643880,-755.13,0.00021917,2]
[327753379,1716432643889,-507.14,0.00021917,2]
[327753380,1716432643899,-3419.56,0.00021917,2]
[327753381,1716432643909,-500.0,0.00021917,2]
[327753382,1716432643918,-500.0,0.00021917,2]
[327753383,1716432643927,-644.53,0.00021917,2]
[327753384,1716432643937,-500.0,0.00021917,2]
[327753385,1716432643947,-500.0,0.00021917,2]
[327753386,1716432643956,-500.0,0.00021917,2]
[327753387,1716432643967,-618.49,0.00021917,2]
[327753388,1716432643979,-639.58,0.00021917,2]
[327753389,1716432643988,-5605.18,0.00021917,2]
[327753390,1716432644001,-500.0,0.00021917,2]
[327753391,1716432644016,-3848.47,0.00021917,2]
[327753392,1716432644025,-337.60328337,0.00021917,2]
[327753393,1716432644035,-500.0,0.00021917,2]
[327753394,1716432644045,-500.0,0.00021917,2]
[327753395,1716432644054,-500.0,0.00021917,2]
[327753396,1716432644063,-500.0,0.00021917,2]
[327753397,1716432644072,-500.0,0.00021917,2]
[327753398,1716432644082,-500.0,0.00021917,2]
[327753399,1716432644092,-500.0,0.00021917,2]
[327753400,1716432644103,-500.0,0.00021917,2]
[327753401,1716432644113,-500.0,0.00021917,2]
[327753402,1716432644123,-500.0,0.00021917,2]
[327753403,1716432644133,-972.37,0.00021917,2]
[327753404,1716432644143,-500.0,0.00021917,2]
[327753405,1716432644152,-271.90451239,0.00021917,2]
[327753406,1716432644162,-500.0,0.00021917,2]
[327753407,1716432644172,-552.38,0.00021917,2]
[327753408,1716432644182,-500.0,0.00021917,2]
[327753409,1716432644192,-620.45652158,0.00021917,2]
[327753410,1716432644201,-705.43,0.00021917,2]
[327753411,1716432644211,-215.179279,0.00021917,2]
[327753412,1716432644221,-4365.07,0.00021917,2]
[327753413,1716432644231,-500.0,0.00021917,2]
[327753414,1716432644240,-500.0,0.00021917,2]
[327753415,1716432644251,-500.0,0.00021917,2]
[327753416,1716432644261,-500.0,0.00021917,2]
[327753417,1716432644270,-1949.72,0.00021917,2]
[327753418,1716432644280,-417.22234765,0.00021917,2]
[327753419,1716432644291,-500.0,0.00021917,2]
[327753420,1716432644301,-500.0,0.00021917,2]
[327753421,1716432644312,-500.0,0.00021917,2]
[327753422,1716432644321,-500.0,0.00021917,2]
[327753423,1716432644332,-500.0,0.00021917,2]
[327753424,1716432644342,-500.0,0.00021917,2]
[327753425,1716432644352,-500.0,0.00021917,2]
[327753426,1716432644362,-1217.93,0.00021917,2]
[327753427,1716432644372,-836.28,0.00021917,2]
[327753428,1716432644382,-500.0,0.00021917,2]
[327753429,1716432644392,-500.0,0.00021917,2]
[327753430,1716432644401,-500.0,0.00021917,2]
[327753431,1716432644411,-651.01,0.00021917,2]
[327753432,1716432644420,-500.0,0.00021917,2]
[327753433,1716432644429,-500.0,0.00021917,2]
[327753435,1716432644439,-173.19635359,0.00021917,2]
[327753436,1716432644448,-818.52,0.00021917,2]
[327753437,1716432644457,-500.0,0.00021917,2]
[327753438,1716432644467,-500.0,0.00021917,2]
[327753439,1716432644476,-500.0,0.00021917,2]
[327753440,1716432644486,-500.0,0.00021917,2]
[327753441,1716432644495,-860.87,0.00021917,2]
[327753442,1716432644506,-500.0,0.00021917,2]
[327753443,1716432644518,-500.82005997,0.00021917,2]
[327753444,1716432644529,-500.0,0.00021917,2]
[327753445,1716432644539,-500.0,0.00021917,2]
[327753446,1716432644549,-1049.77,0.00021917,2]
[327753447,1716432644559,-667.48,0.00021917,2]
[327753448,1716432644568,-500.0,0.00021917,2]
[327753449,1716432644577,-500.0,0.00021917,2]
[327753450,1716432644587,-406.3643563,0.00021917,2]
[327753451,1716432644599,-858.38,0.00021917,2]
[327753452,1716432644608,-500.0,0.00021917,2]
[327753453,1716432644617,-500.0,0.00021917,2]
[327753454,1716432644626,-500.0,0.00021917,2]
[327753455,1716432644635,-507.72756383,0.00021917,2]
[327753456,1716432644645,-569.63,0.00021917,2]
[327753457,1716432644654,-500.0,0.00021917,2]
[327753458,1716432644663,-500.0,0.00021917,2]
[327753459,1716432644673,-500.0,0.00021917,2]
[327753460,1716432644682,-428.88154297,0.00021917,2]
[327753461,1716432644690,-500.0,0.00021917,2]
[327753462,1716432644699,-500.0,0.00021917,2]
[327753463,1716432644708,-500.0,0.00021917,2]
[327753464,1716432644717,-627.05873529,0.00021917,2]
[327753465,1716432644726,-1035.81,0.00021917,2]
[327753466,1716432644735,-668.87,0.00021917,2]
[327753467,1716432644744,-500.0,0.00021917,2]
[327753468,1716432644754,-1426.39,0.00021917,2]
[327753469,1716432644762,-991.74,0.00021917,2]
[327753470,1716432644771,-500.0,0.00021917,2]
[327753471,1716432644780,-500.0,0.00021917,2]
[327753472,1716432644790,-500.0,0.00021917,2]
[327753474,1716432644799,-500.0,0.00021917,2]
[327753476,1716432644808,-1283.32,0.00021917,2]
[327753478,1716432644818,-500.0,0.00021917,2]
[327753480,1716432644827,-500.0,0.00021917,2]
[327753482,1716432644836,-500.0,0.00021917,2]
[327753484,1716432644846,-2650.38,0.00021917,2]
[327753485,1716432644855,-719.97,0.00021917,2]
[327753487,1716432644865,-500.0,0.00021917,2]
[327753489,1716432644874,-568.65043332,0.00021917,2]
[327753490,1716432644883,-3769.04,0.00021917,2]
[327753491,1716432644892,-796.14,0.00021917,2]
[327753492,1716432644902,-500.0,0.00021917,2]
[327753493,1716432644911,-500.0,0.00021917,2]
[327753494,1716432644921,-606.35,0.00021917,2]
[327753495,1716432644930,-500.0,0.00021917,2]
[327753496,1716432644939,-182.97273778,0.00021917,2]
[327753497,1716432644949,-657.85,0.00021917,2]
[327753498,1716432644959,-500.0,0.00021917,2]
[327753499,1716432644968,-1868.32,0.00021917,2]
[327753500,1716432644977,-667.33,0.00021917,2]
[327753501,1716432644987,-500.0,0.00021917,2]
[327753502,1716432644997,-550.28,0.00021917,2]
[327753503,1716432645007,-508.08,0.00021917,2]
[327753504,1716432645016,-500.0,0.00021917,2]
[327753505,1716432645026,-500.0,0.00021917,2]
[327753506,1716432645036,-525.63349922,0.00021917,2]
[327753507,1716432645046,-1164.2,0.00021917,2]
[327753508,1716432645056,-500.0,0.00021917,2]
[327753509,1716432645066,-705.51,0.00021917,2]
[327753510,1716432645075,-500.0,0.00021917,2]
[327753511,1716432645084,-500.0,0.00021917,2]
[327753512,1716432645094,-500.0,0.00021917,2]
[327753513,1716432645104,-500.0,0.00021917,2]
[327753514,1716432645113,-259.08189111,0.00021917,2]
[327753515,1716432645123,-512.21,0.00021917,2]
[327753516,1716432645132,-500.0,0.00021917,2]
[327753517,1716432645142,-2362.28,0.00021917,2]
[327753518,1716432645152,-500.0,0.00021917,2]
[327753519,1716432645161,-500.0,0.00021917,2]
[327753520,1716432645171,-500.0,0.00021917,2]
[327753521,1716432645180,-776.78,0.00021917,2]
[327753522,1716432645189,-500.0,0.00021917,2]
[327753523,1716432645199,-500.0,0.00021917,2]
[327753524,1716432645208,-509.63,0.00021917,2]
[327753525,1716432645218,-794.05,0.00021917,2]
[327753526,1716432645228,-500.0,0.00021917,2]
[327753527,1716432645237,-500.0,0.00021917,2]
[327753528,1716432645246,-467.35442741,0.00021917,2]
[327753529,1716432645256,-500.0,0.00021917,2]
[327753530,1716432645266,-536.59535284,0.00021917,2]
[327753531,1716432645276,-521.29,0.00021917,2]
[327753532,1716432645285,-500.0,0.00021917,2]
[327753533,1716432645295,-809.18,0.00021917,2]
[327753534,1716432645304,-269.33064791,0.00021917,2]
[327753535,1716432645313,-500.0,0.00021917,2]
[327753536,1716432645333,-1435.08,0.00021917,2]
[327753537,1716432645343,-500.0,0.00021917,2]
[327753538,1716432645352,-500.0,0.00021917,2]
[327753539,1716432645361,-500.0,0.00021917,2]
[327753540,1716432645370,-734.15,0.00021917,2]
[327753541,1716432645380,-625.57,0.00021917,2]
[327753542,1716432645389,-1174.34,0.00021917,2]
[327753543,1716432645398,-500.0,0.00021917,2]
[327753544,1716432645408,-652.81,0.00021917,2]
[327753545,1716432645418,-747.59,0.00021917,2]
[327753546,1716432645427,-500.0,0.00021917,2]
[327753547,1716432645437,-500.0,0.00021917,2]
[327753548,1716432645446,-585.21,0.00021917,2]
[327753549,1716432645456,-500.0,0.00021917,2]
[327753550,1716432645465,-500.0,0.00021917,2]
[327753551,1716432645475,-3383.27,0.00021917,2]
[327753552,1716432645484,-151.0,0.00021917,2]
[327753553,1716432645494,-500.0,0.00021917,2]
[327753554,1716432645504,-500.0,0.00021917,2]
[327753555,1716432645515,-891.97,0.00021917,2]
[327753556,1716432645528,-809.95,0.00021917,2]
[327753557,1716432645537,-792.86,0.00021917,2]
[327753558,1716432645547,-888.74,0.00021917,2]
[327753559,1716432645557,-1183.58,0.00021918,2]
[327753560,1716432645567,-163.86,0.00021918,2]
[327753561,1716432645576,-2000.0,0.00021918,2]
[327753562,1716432645586,-1042.11,0.00021918,2]
[327753563,1716432645598,-155.0,0.00022,2]
[327753564,1716432645608,-150.0,0.00022,3]
[327753565,1716432645617,-270.0,0.00022,2]
[327753566,1716432645627,-1754.63,0.00022034,2]
[327753567,1716432645640,-150.0,0.00022044,4]
[327753568,1716432645649,-155.21231935,0.00022052,2]
[327753569,1716432645659,-232.45250762,0.00022056,2]
[327753570,1716432645668,-160.0,0.0002209,6]
[327753571,1716432645678,-290.05791664,0.00022091,2]
[327753572,1716432645687,-333.49233576,0.00022097,2]
[327753573,1716432645696,-157.48944876,0.00022154,2]
[327753574,1716432645706,-159.06823747,0.00022158,2]
[327753575,1716432645716,-150.0,0.00022178,4]
[327753576,1716432645725,-152.51987662,0.00022179,2]
[327753577,1716432645735,-697.34032449,0.0002219,2]
[327753578,1716432645744,-500.0,0.00022191,2]
[327753579,1716432645753,-500.0,0.00022191,2]
[327753580,1716432645763,-538.43314513,0.00022191,2]
[327753581,1716432645772,-500.0,0.00022191,2]
[327753582,1716432645781,-500.0,0.00022191,2]
[327753583,1716432645791,-500.0,0.00022191,2]
[327753584,1716432645800,-500.0,0.00022191,2]
[327753585,1716432645810,-500.0,0.00022191,2]
[327753586,1716432645819,-500.0,0.00022191,2]
[327753587,1716432645828,-500.0,0.00022191,2]
[327753588,1716432645838,-558.99635979,0.00022191,2]
[327753589,1716432645847,-500.0,0.00022191,2]
[327753590,1716432645856,-1288.33,0.00022191,2]
[327753591,1716432645865,-500.0,0.00022191,2]
[327753592,1716432645875,-500.0,0.00022191,2]
[327753593,1716432645884,-500.0,0.00022191,2]
[327753594,1716432645894,-500.0,0.00022191,2]
[327753595,1716432645903,-514.05094953,0.00022191,2]
[327753596,1716432645912,-500.0,0.00022191,2]
[327753597,1716432645922,-500.0,0.00022191,2]
[327753598,1716432645931,-500.0,0.00022191,2]
[327753599,1716432645940,-336.27305218,0.00022191,2]
[327753600,1716432645950,-500.0,0.00022191,2]
[327753601,1716432645959,-500.0,0.00022191,2]
[327753602,1716432645968,-1232.58,0.00022191,2]
[327753603,1716432645978,-258.7848139,0.00022191,2]
[327753604,1716432645987,-500.0,0.00022191,2]
[327753605,1716432645996,-500.0,0.00022191,2]
[327753606,1716432646006,-708.02,0.00022191,2]
[327753607,1716432646016,-500.0,0.00022191,2]
[327753608,1716432646026,-500.0,0.00022191,2]
[327753609,1716432646035,-500.0,0.00022191,2]
[327753610,1716432646044,-500.0,0.00022191,2]
[327753611,1716432646053,-1941.35,0.00022191,2]
[327753612,1716432646062,-500.0,0.00022191,2]
[327753613,1716432646071,-578.8,0.00022191,2]
[327753614,1716432646081,-199.31004437,0.00022191,2]
[327753615,1716432646090,-500.0,0.00022191,2]
[327753616,1716432646099,-500.0,0.00022191,2]
[327753617,1716432646109,-549.84,0.00022191,2]
[327753618,1716432646118,-500.0,0.00022191,2]
[327753619,1716432646128,-500.0,0.00022191,2]
[327753620,1716432646137,-1949.84,0.00022191,2]
[327753621,1716432646146,-500.0,0.00022191,2]
[327753622,1716432646155,-854.74,0.00022191,2]
[327753623,1716432646164,-500.0,0.00022191,2]
[327753624,1716432646174,-500.0,0.00022191,2]
[327753625,1716432646184,-505.01606884,0.00022191,2]
[327753626,1716432646193,-500.0,0.00022191,2]
[327753628,1716432646203,-683.02,0.00022191,2]
[327753629,1716432646212,-500.0,0.00022191,2]
[327753630,1716432646221,-500.0,0.00022191,2]
[327753631,1716432646231,-1713.52,0.00022191,2]
[327753632,1716432646240,-500.0,0.00022191,2]
[327753633,1716432646250,-500.0,0.00022191,2]
[327753634,1716432646260,-500.0,0.00022191,2]
[327753635,1716432646269,-740.18,0.00022191,2]
[327753636,1716432646278,-500.0,0.00022191,2]
[327753637,1716432646287,-791.87,0.00022191,2]
[327753638,1716432646296,-512.39,0.00022191,2]
[327753639,1716432646306,-151.0,0.00022191,7]
[327753640,1716432646316,-500.0,0.00022191,2]
[327753641,1716432646325,-500.0,0.00022191,2]
[327753642,1716432646335,-500.0,0.00022191,2]
[327753643,1716432646344,-413.7323218,0.00022191,2]
[327753644,1716432646354,-500.0,0.00022191,2]
[327753645,1716432646364,-500.0,0.00022191,2]
[327753646,1716432646374,-545.24995383,0.00022191,2]
[327753647,1716432646384,-500.0,0.00022191,2]
[327753648,1716432646394,-500.0,0.00022191,2]
[327753649,1716432646403,-500.0,0.00022191,2]
[327753650,1716432646412,-500.0,0.00022191,2]
[327753651,1716432646422,-559.16,0.00022191,2]
[327753652,1716432646432,-500.0,0.00022191,2]
[327753653,1716432646441,-500.0,0.00022191,2]
[327753654,1716432646451,-500.0,0.00022191,2]
[327753655,1716432646460,-500.0,0.00022191,2]
[327753656,1716432646470,-500.0,0.00022191,2]
[327753657,1716432646480,-500.0,0.00022191,2]
[327753658,1716432646490,-500.0,0.00022191,2]
[327753659,1716432646500,-500.0,0.00022191,2]
[327753660,1716432646510,-500.0,0.00022191,2]
[327753661,1716432646523,-500.0,0.00022191,2]
[327753662,1716432646678,-636.15,0.00022191,2]
[327753663,1716432646688,-500.0,0.00022191,2]
[327753664,1716432646698,-881.15,0.00022191,2]
[327753665,1716432646708,-922.68,0.00022191,2]
[327753666,1716432646718,-500.0,0.00022191,2]
[327753667,1716432646730,-3262.56,0.00022191,2]
[327753668,1716432646741,-500.0,0.00022191,2]
[327753669,1716432646751,-607.7139301,0.00022191,2]
[327753670,1716432646760,-500.0,0.00022191,2]
[327753671,1716432646770,-788.42,0.00022191,2]
[327753672,1716432646779,-589.99,0.00022191,2]
[327753673,1716432646789,-500.0,0.00022191,2]
[327753674,1716432646798,-500.0,0.00022191,2]
[327753675,1716432646807,-500.0,0.00022191,2]
[327753676,1716432646817,-500.0,0.00022191,2]
[327753677,1716432646827,-500.0,0.00022191,2]
[327753678,1716432646836,-500.0,0.00022191,2]
[327753679,1716432646846,-500.0,0.00022191,2]
[327753681,1716432646856,-500.0,0.00022191,2]
[327753683,1716432646865,-500.0,0.00022191,2]
[327753685,1716432646875,-500.0,0.00022191,2]
[327753687,1716432646884,-500.0,0.00022191,2]
[327753689,1716432646895,-500.0,0.00022191,2]
[327753691,1716432646904,-500.0,0.00022191,2]
[327753693,1716432646913,-500.0,0.00022191,2]
[327753695,1716432646923,-500.0,0.00022191,2]
[327753697,1716432646932,-500.0,0.00022191,2]
[327753698,1716432646941,-500.0,0.00022191,2]
[327753699,1716432646950,-500.0,0.00022191,2]
[327753700,1716432646959,-500.0,0.00022191,2]
[327753701,1716432646969,-500.0,0.00022191,2]
[327753702,1716432646978,-500.0,0.00022191,2]
[327753703,1716432646987,-500.0,0.00022191,2]
[327753704,1716432646997,-500.0,0.00022191,2]
[327753705,1716432647008,-500.0,0.00022191,2]
[327753706,1716432647017,-500.0,0.00022191,2]
[327753707,1716432647026,-500.0,0.00022191,2]
[327753709,1716432647036,-500.0,0.00022191,2]
[327753711,1716432647044,-663.29,0.00022191,2]
[327753713,1716432647054,-500.0,0.00022191,2]
[327753715,1716432647063,-827.51,0.00022191,2]
[327753717,1716432647072,-654.97,0.00022191,2]
[327753719,1716432647082,-500.0,0.00022191,2]
[327753721,1716432647091,-500.0,0.00022191,2]
[327753723,1716432647101,-500.0,0.00022191,2]
[327753725,1716432647110,-641.52,0.00022191,2]
[327753727,1716432647119,-500.0,0.00022191,2]
[327753729,1716432647128,-500.0,0.00022191,2]
[327753731,1716432647138,-500.0,0.00022191,2]
[327753733,1716432647147,-500.0,0.00022191,2]
[327753735,1716432647157,-500.0,0.00022191,2]
[327753737,1716432647166,-519.42905304,0.00022191,2]
[327753739,1716432647176,-660.72,0.00022191,2]
[327753741,1716432647185,-579.29,0.00022191,2]
[327753743,1716432647194,-590.2,0.00022191,2]
[327753745,1716432647203,-500.0,0.00022191,2]
[327753747,1716432647213,-500.0,0.00022191,2]
[327753749,1716432647222,-500.0,0.00022191,2]
[327753751,1716432647231,-500.0,0.00022191,2]
[327753753,1716432647241,-500.0,0.00022191,2]
[327753755,1716432647252,-1606.22,0.00022191,2]
[327753757,1716432647262,-500.0,0.00022191,2]
[327753759,1716432647277,-500.0,0.00022191,2]
[327753761,1716432647287,-500.0,0.00022191,2]
[327753763,1716432647297,-500.0,0.00022191,2]
[327753765,1716432647307,-500.0,0.00022191,2]
[327753766,1716432647317,-500.0,0.00022191,2]
[327753767,1716432647327,-500.0,0.00022191,2]
[327753768,1716432647337,-500.0,0.00022191,2]
[327753769,1716432647347,-500.0,0.00022191,2]
[327753770,1716432647357,-500.0,0.00022191,2]
[327753771,1716432647366,-500.0,0.00022191,2]
[327753772,1716432647376,-500.0,0.00022191,2]
[327753773,1716432647387,-500.0,0.00022191,2]
[327753774,1716432647396,-500.0,0.00022191,2]
[327753775,1716432647407,-500.0,0.00022191,2]
[327753776,1716432647416,-500.0,0.00022191,2]
[327753777,1716432647427,-500.0,0.00022191,2]
[327753778,1716432647436,-500.0,0.00022191,2]
[327753779,1716432647447,-500.0,0.00022191,2]
[327753780,1716432647456,-500.0,0.00022191,2]
[327753781,1716432647466,-500.0,0.00022191,2]
[327753782,1716432647476,-500.0,0.00022191,2]
[327753783,1716432647487,-500.0,0.00022191,2]
[327753784,1716432647496,-500.0,0.00022191,2]
[327753785,1716432647507,-500.0,0.00022191,2]
[327753786,1716432647519,-561.09218154,0.00022191,2]
[327753787,1716432647529,-605.69715286,0.00022191,2]
[327753788,1716432647539,-500.0,0.00022191,2]
[327753789,1716432647550,-500.0,0.00022191,2]
[327753790,1716432647560,-500.0,0.00022191,2]
[327753791,1716432647570,-500.0,0.00022191,2]
[327753792,1716432647580,-500.0,0.00022191,2]
[327753793,1716432647590,-542.05484308,0.00022191,2]
[327753794,1716432647602,-500.0,0.00022191,2]
[327753795,1716432647611,-467.2732418,0.00022191,2]
[327753796,1716432647621,-500.0,0.00022191,2]
[327753797,1716432647631,-489.04673382,0.00022191,2]
[327753798,1716432647642,-500.0,0.00022191,2]
[327753799,1716432647653,-500.0,0.00022191,2]
[327753800,1716432647663,-500.0,0.00022191,2]
[327753801,1716432647673,-543.04665515,0.00022191,2]
[327753802,1716432647683,-500.0,0.00022191,2]
[327753803,1716432647692,-500.0,0.00022191,2]
[327753804,1716432647702,-500.0,0.00022191,2]
[327753805,1716432647711,-500.0,0.00022191,2]
[327753806,1716432647721,-500.0,0.00022191,2]
[327753807,1716432647731,-500.0,0.00022191,2]
[327753808,1716432647740,-1524.72,0.00022191,2]
[327753809,1716432647750,-500.0,0.00022191,2]
[327753810,1716432647760,-500.0,0.00022191,2]
[327753811,1716432647770,-500.0,0.00022191,2]
[327753812,1716432647779,-500.0,0.00022191,2]
[327753813,1716432647790,-500.0,0.00022191,2]
[327753814,1716432647800,-500.0,0.00022191,2]
[327753815,1716432647810,-500.0,0.00022191,2]
[327753816,1716432647820,-262.56,0.00022191,2]
[327753817,1716432647830,-500.0,0.00022191,2]
[327753818,1716432647840,-163.15121249,0.00022191,2]
[327753819,1716432647850,-500.0,0.00022191,2]
[327753820,1716432647860,-518.3729803,0.00022191,2]
[327753821,1716432647870,-500.0,0.00022191,2]
[327753822,1716432647880,-177.12660469,0.00022191,2]
[327753823,1716432647890,-500.0,0.00022191,2]
[327753824,1716432647899,-540.53138011,0.00022191,2]
[327753825,1716432647909,-500.0,0.00022191,2]
[327753826,1716432647920,-500.0,0.00022191,2]
[327753827,1716432647930,-500.0,0.00022191,2]
[327753828,1716432647941,-500.0,0.00022191,2]
[327753829,1716432647951,-500.0,0.00022191,2]
[327753830,1716432647961,-500.0,0.00022191,2]
[327753831,1716432647972,-500.0,0.00022191,2]
[327753832,1716432647982,-500.0,0.00022191,2]
[327753833,1716432647992,-500.0,0.00022191,2]
[327753834,1716432648003,-1000.0,0.00022191,2]
[327753835,1716432648012,-500.0,0.00022191,2]
[327753836,1716432648022,-362.25758809,0.00022191,2]
[327753837,1716432648032,-500.0,0.00022191,2]
[327753838,1716432648042,-329.4572451,0.00022191,2]
[327753839,1716432648052,-500.0,0.00022191,2]
[327753840,1716432648061,-500.0,0.00022191,2]
[327753841,1716432648071,-500.0,0.00022191,2]
[327753842,1716432648081,-500.0,0.00022191,2]
[327753843,1716432648091,-500.0,0.00022191,2]
[327753844,1716432648100,-500.0,0.00022191,2]
[327753845,1716432648110,-500.0,0.00022191,2]
[327753846,1716432648119,-500.0,0.00022191,2]
[327753847,1716432648129,-500.0,0.00022191,2]
[327753848,1716432648139,-500.0,0.00022191,2]
[327753849,1716432648148,-500.0,0.00022191,2]
[327753850,1716432648158,-401.91165466,0.00022191,2]
[327753851,1716432648167,-500.0,0.00022191,2]
[327753852,1716432648177,-500.0,0.00022191,2]
[327753853,1716432648186,-500.0,0.00022191,2]
[327753854,1716432648195,-500.0,0.00022191,2]
[327753855,1716432648205,-927.84,0.00022191,2]
[327753856,1716432648215,-500.0,0.00022191,2]
[327753857,1716432648224,-642.52,0.00022191,2]
[327753858,1716432648234,-500.0,0.00022191,2]
[327753859,1716432648243,-817.98,0.00022191,2]
[327753860,1716432648254,-500.0,0.00022191,2]
[327753861,1716432648263,-500.0,0.00022191,2]
[327753862,1716432648273,-500.0,0.00022191,2]
[327753863,1716432648283,-500.0,0.00022191,2]
[327753864,1716432648293,-500.0,0.00022191,2]
[327753865,1716432648303,-500.0,0.00022191,2]
[327753866,1716432648312,-500.0,0.00022191,2]
[327753867,1716432648322,-552.1,0.00022191,2]
[327753868,1716432648332,-253.3819632,0.00022191,2]
[327753869,1716432648342,-1577.19,0.00022191,2]
[327753870,1716432648352,-500.0,0.00022191,2]
[327753871,1716432648362,-500.0,0.00022191,2]
[327753872,1716432648372,-500.0,0.00022191,2]
[327753873,1716432648382,-500.0,0.00022191,2]
[327753874,1716432648391,-500.0,0.00022191,2]
[327753875,1716432648401,-500.0,0.00022191,2]
[327753876,1716432648412,-500.0,0.00022191,2]
[327753877,1716432648422,-500.0,0.00022191,2]
[327753878,1716432648432,-500.0,0.00022191,2]
[327753879,1716432648442,-1189.63,0.00022191,2]
[327753880,1716432648452,-706.04,0.00022191,2]
[327753881,1716432648462,-500.0,0.00022191,2]
[327753882,1716432648471,-1375.34,0.00022191,2]
[327753883,1716432648481,-681.11,0.00022191,2]
[327753884,1716432648491,-500.0,0.00022191,2]
[327753885,1716432648501,-2368.11,0.00022191,2]
[327753886,1716432648512,-545.65,0.00022191,2]
[327753887,1716432648526,-553.59,0.00022191,2]
[327753888,1716432648535,-500.0,0.00022191,2]
[327753889,1716432648545,-500.0,0.00022191,2]
[327753890,1716432648555,-500.0,0.00022191,2]
[327753891,1716432648567,-500.0,0.00022191,2]
[327753892,1716432648576,-500.0,0.00022191,2]
[327753893,1716432648586,-603.91,0.00022191,2]
[327753894,1716432648597,-850.66,0.00022191,2]
[327753895,1716432648607,-1474.23,0.00022191,2]
[327753896,1716432648617,-500.0,0.00022191,2]
[327753897,1716432648627,-9892.35,0.00022191,2]
[327753898,1716432648637,-628.52380653,0.00022191,2]
[327753899,1716432648647,-505.45219517,0.00022191,2]
[327753900,1716432648657,-631.25,0.00022191,2]
[327753901,1716432648667,-500.0,0.00022191,2]
[327753902,1716432648676,-1819.25,0.00022191,2]
[327753903,1716432648687,-500.0,0.00022191,2]
[327753904,1716432648699,-500.0,0.00022191,2]
[327753905,1716432648710,-510.74,0.00022191,2]
[327753906,1716432648720,-500.0,0.00022191,2]